bitfinex-derivatives/quotes_SOLF0:USTF0_20250818
["timestamp","ask_amount","ask_price","bid_price","bid_amount"]
[1755544818619,9.10127775,183.88,183.73,8.3]
[1755544818620,3.12,183.83,183.73,8.3]
[1755544819113,3.12,183.83,183.74,5.4399]
[1755544819519,0.0366152,183.8,183.73,2.86]
[1755544821302,3.1566152,183.8,183.73,2.86]
[1755544821713,3.1566152,183.8,183.73,8.3002]
[1755544821907,0.0366152,183.8,183.73,2.86]
[1755544822306,0.0366152,183.8,183.74,5.4398]
[1755544822507,0.0366152,183.8,183.73,2.86]
[1755544822807,0.0366152,183.8,183.68,3.17]
[1755544823207,3.12,183.81,183.72,5.4402]
[1755544823611,3.12,183.81,183.68,3.17]
[1755544823612,0.04065189,183.76,183.68,3.17]
[1755544823808,0.04065189,183.76,183.73,8.6102]
[1755544824710,0.04065189,183.76,183.73,3.17]
[1755544824914,0.04065189,183.76,183.69,3.17]
[1755544825507,0.04065189,183.76,183.69,8.6111]
[1755544826213,0.04065189,183.76,183.69,3.17]
[1755544826617,0.04065189,183.76,183.71,3.17]
[1755544826809,0.04065189,183.76,183.75,5.4396]
[1755544827115,3.0,183.82,183.75,8.6096]
[1755544827308,3.0,183.82,183.75,3.17]
[1755544827510,0.03673023,183.77,183.76,8.6093]
[1755544828016,365.4,183.85,183.76,3.17]
[1755544828208,365.4,183.85,183.79,5.4383]
[1755544828610,0.03500654,183.84,183.79,5.4383]
[1755544828910,0.03500654,183.84,183.8,3.17]
[1755544829112,0.03500654,183.84,183.81,3.17]
[1755544829320,0.03500654,183.84,183.75,3.17]
[1755544829615,3.0,183.83,183.75,3.17]
[1755544830411,3.0,183.83,183.72,3.17]
[1755544831213,0.0345782,183.79,183.72,8.6103]
[1755544831714,0.0345782,183.79,183.68,3.17]
[1755544831920,0.0345782,183.79,183.7,5.441]
[1755544832125,3.0,183.8,183.7,5.441]
[1755544832516,0.03821784,183.76,183.7,5.441]
[1755544832720,0.03821784,183.76,183.69,5.4413]
[1755544833110,0.03821784,183.76,183.68,3.17]
[1755544833111,0.03821784,183.76,183.71,5.4406]
[1755544833315,0.03821784,183.76,183.72,3.17]
[1755544834924,3.03821784,183.76,183.72,3.17]
[1755544835328,3.03821784,183.76,183.67,5.98127775]
[1755544835521,3.03821784,183.76,183.68,3.17]
[1755544836227,3.03821784,183.76,183.7,5.441]
[1755544836621,3.03821784,183.76,183.68,8.6114]
[1755544837022,3.03821784,183.76,183.68,3.17]
[1755544837722,0.03821784,183.76,183.68,3.17]
[1755544839126,0.03821784,183.76,183.72,5.4403]
[1755544839324,0.03821784,183.76,183.74,3.17]
[1755544839630,0.03821784,183.76,183.65,3.17]
[1755544839930,0.03821784,183.76,183.7,5.4409]
[1755544840132,3.0,183.78,183.7,5.4409]
[1755544840343,0.04100471,183.75,183.69,8.6113]
[1755544841229,0.04100471,183.75,183.71,3.17]
[1755544841533,0.04100471,183.75,183.72,3.17]
[1755544841730,0.04100471,183.75,183.65,3.17]
[1755544841934,0.04100471,183.75,183.65,7.68421092]
[1755544842326,0.04100471,183.75,183.68,5.98127775]
[1755544842630,0.04100471,183.75,183.69,3.17]
[1755544843023,0.04100471,183.75,183.72,3.17]
[1755544843226,0.04100471,183.75,183.73,3.17]
[1755544843426,0.04100471,183.75,183.69,3.17]
[1755544843626,0.04100471,183.75,183.73,3.17]
[1755544843826,0.04100471,183.75,183.69,3.17]
[1755544847127,0.04100471,183.75,183.69,8.6114]
[1755544847334,0.04100471,183.75,183.69,3.17]
[1755544848233,0.04100471,183.75,183.69,8.6113]
[1755544848434,0.04100471,183.75,183.69,3.17]
[1755544848631,0.04100471,183.75,183.65,3.17]
[1755544848928,0.04100471,183.75,183.69,5.4411]
[1755544849334,0.04100471,183.75,183.68,3.17]
[1755544850137,0.04100471,183.75,183.68,8.6116]
[1755544851933,0.04100471,183.75,183.68,3.17]
[1755544852133,0.04100471,183.75,183.65,3.80044517]
[1755544852134,3.12,183.74,183.65,3.80044517]
[1755544852531,3.12,183.74,183.65,9.24274517]
[1755544853031,50.0,183.75,183.64,8.3528]
[1755544853032,3.15439992,183.71,183.64,8.3528]
[1755544853240,0.03439992,183.71,183.64,2.91]
[1755544853638,0.03439992,183.71,183.66,5.4421]
[1755544853841,0.03439992,183.71,183.68,2.91]
[1755544854030,0.03439992,183.71,183.66,2.91]
[1755544854235,3.12,183.74,183.68,5.4415]
[1755544854433,50.0,183.75,183.68,3.80044517]
[1755544854636,0.04164022,183.7,183.69,2.91]
[1755544855035,50.0,183.75,183.69,2.91]
[1755544855433,0.04110989,183.71,183.69,2.91]
[1755544856537,0.04110989,183.71,183.7,2.91]
[1755544856842,141.44,183.77,183.7,2.91]
[1755544857037,141.44,183.77,183.73,2.91]
[1755544857345,141.44,183.77,183.74,2.91]
[1755544857546,141.44,183.77,183.7,2.91]
[1755544857942,3.14,183.76,183.68,5.4417]
[1755544858141,141.44,183.77,183.72,0.04158036]
[1755544858337,3.14,183.74,183.72,0.04158036]
[1755544860136,141.44,183.77,183.72,0.04158036]
[1755544860446,144.58,183.77,183.73,2.91]
[1755544860942,144.58,183.77,183.72,0.04158036]
[1755544860943,3.14,183.75,183.72,0.04158036]
[1755544861337,144.58,183.77,183.72,2.95158036]
[1755544861537,141.44,183.77,183.72,0.04158036]
[1755544861737,141.44,183.77,183.74,2.91]
[1755544862140,144.58,183.77,183.72,2.95158036]
[1755544862339,144.58,183.77,183.72,8.39198036]
[1755544862539,144.58,183.77,183.73,2.91]
[1755544862945,3.14,183.75,183.72,0.04158036]
[1755544863138,141.44,183.77,183.72,0.04158036]
[1755544863337,3.14,183.76,183.72,0.04158036]
[1755544864740,58.10459955,183.75,183.72,0.04158036]
[1755544864947,3.14,183.73,183.72,0.04158036]
[1755544865548,3.14,183.73,183.63,2.91]
[1755544865744,7.44345613,183.73,183.63,8.3529]
[1755544865936,3.14,183.73,183.63,8.3529]
[1755544866343,4.30256193,183.72,183.63,8.3529]
[1755544866637,144.22,183.71,183.63,8.3529]
[1755544866840,0.04066108,183.69,183.61,9.24394517]
[1755544867046,0.04066108,183.69,183.61,3.80044517]
[1755544867544,0.04066108,183.69,183.59,2.91]
[1755544867545,3.12,183.68,183.59,2.91]
[1755544867944,3.12,183.68,183.6,5.4439]
[1755544868147,3.12,183.68,183.59,2.91]
[1755544869350,3.12,183.68,183.6,5.4439]
[1755544869655,0.04066108,183.69,183.59,2.91]
[1755544869944,3.13,183.68,183.59,2.91]
[1755544870351,3.13,183.68,183.61,5.4437]
[1755544870548,3.13,183.68,183.59,2.91]
[1755544871260,3.13,183.68,183.62,8.3532]
[1755544871760,3.13,183.68,183.58,3.80044517]
[1755544872058,0.04101071,183.67,183.59,2.91]
[1755544872958,0.04101071,183.67,183.62,5.4433]
[1755544873159,0.04101071,183.67,183.61,3.80044517]
[1755544873359,0.04101071,183.67,183.63,2.91]
[1755544873660,3.13,183.66,183.59,2.91]
[1755544874254,3.13,183.66,183.6,5.4438]
[1755544874760,3.13,183.66,183.61,5.4437]
[1755544874958,0.04101071,183.67,183.63,2.91]
[1755544875554,3.17101071,183.67,183.58,9.81939307]
[1755544875751,3.17101071,183.67,183.59,2.91]
[1755544876260,3.17101071,183.67,183.61,5.4437]
[1755544876460,3.17101071,183.67,183.59,2.91]
[1755544876662,3.17101071,183.67,183.6,5.4438]
[1755544877257,3.17101071,183.67,183.61,5.4437]
[1755544878164,3.17101071,183.67,183.6,5.444]
[1755544878367,3.17101071,183.67,183.56,2.91]
[1755544878761,3.13,183.67,183.59,5.4443]
[1755544879059,0.03842732,183.63,183.59,5.4443]
[1755544879265,0.03842732,183.63,183.56,2.91]
[1755544879266,0.03842732,183.63,183.57,5.4448]
[1755544879564,0.03842732,183.63,183.56,2.91]
[1755544880158,0.03842732,183.63,183.56,8.3551]
[1755544880864,3.13,183.61,183.52,2.91]
[1755544881559,0.03453369,183.58,183.52,2.91]
[1755544881956,0.03453369,183.58,183.47,146.5389479]
[1755544881957,3.16453369,183.58,183.48,2.91]
[1755544884257,3.16453369,183.58,183.51,3.0]
[1755544884659,3.13,183.58,183.51,3.0]
[1755544884860,3.06,183.63,183.53,3.80044517]
[1755544885062,3.06,183.63,183.55,3.0]
[1755544885856,140.3,183.65,183.59,8.4443]
[1755544886258,140.3,183.65,183.6,0.03584553]
[1755544886659,3.06,183.63,183.6,0.03584553]
[1755544886860,3.06,183.62,183.6,0.03584553]
[1755544889066,3.06,183.61,183.6,0.03584553]
[1755544889563,3.6,183.61,183.52,5.4462]
[1755544889764,3.06,183.61,183.51,3.0]
[1755544890364,143.1,183.65,183.52,3.0]
[1755544890665,3.06,183.63,183.52,3.0]
[1755544891063,3.06,183.63,183.55,5.4454]
[1755544891259,0.03950331,183.59,183.51,5.99442593]
[1755544891571,0.03950331,183.59,183.52,3.0]
[1755544892269,0.03950331,183.59,183.56,3.0]
[1755544893173,0.03950331,183.59,183.51,3.0]
[1755544893374,3.06,183.58,183.51,3.0]
[1755544894875,3.06,183.58,183.52,5.4463]
[1755544895771,0.03950331,183.59,183.52,3.0]
[1755544897171,0.03950331,183.59,183.53,5.4459]
[1755544897371,0.03950331,183.59,183.52,3.0]
[1755544897567,3.09950331,183.59,183.52,8.4464]
[1755544899079,3.09950331,183.59,183.53,5.446]
[1755544900480,3.09950331,183.59,183.55,3.0]
[1755544900679,0.03950331,183.59,183.49,3.0]
[1755544901279,0.03950331,183.59,183.53,3.0]
[1755544902075,0.03950331,183.59,183.55,8.4453]
[1755544902577,0.03950331,183.59,183.55,3.0]
[1755544902782,3.09950331,183.59,183.55,3.0]
[1755544903580,3.09950331,183.59,183.52,3.0]
[1755544904173,3.09950331,183.59,183.53,5.4461]
[1755544904783,3.09950331,183.59,183.47,3.0]
[1755544905180,3.06,183.59,183.47,3.0]
[1755544905684,3.06,183.59,183.51,5.4465]
[1755544905887,0.03475604,183.55,183.47,3.0]
[1755544906284,0.03475604,183.55,183.51,8.4465]
[1755544906484,0.03475604,183.55,183.51,3.0]
[1755544906681,3.09475604,183.55,183.51,3.0]
[1755544906885,3.09475604,183.55,183.48,3.0]
[1755544908188,3.09475604,183.55,183.43,3.0]
[1755544908686,3.06,183.55,183.45,5.4483]
[1755544909191,0.03791329,183.52,183.45,5.4483]
[1755544909587,0.03791329,183.52,183.43,3.0]
[1755544910688,0.03791329,183.52,183.46,5.448]
[1755544910888,0.03791329,183.52,183.43,3.0]
[1755544912387,0.03791329,183.52,183.45,2.87]
[1755544912597,0.03791329,183.52,183.49,2.87]
[1755544912789,3.06,183.55,183.49,2.87]
[1755544913087,3.13,183.58,183.49,2.87]
[1755544913494,3.13,183.58,183.5,2.87]
[1755544913495,0.0391999,183.54,183.5,2.87]
[1755544913794,0.0391999,183.54,183.48,2.87]
[1755544913991,0.0391999,183.54,183.51,8.3165]
[1755544914789,3.13,183.53,183.5,5.4469]
[1755544915699,0.0391999,183.54,183.5,5.4469]
[1755544916196,3.1691999,183.54,183.5,5.4469]
[1755544916694,3.13,183.53,183.49,5.4472]
[1755544916894,3.13,183.53,183.48,2.87]
[1755544917095,3.13,183.52,183.48,2.87]
[1755544917896,0.0391999,183.54,183.45,6.00049218]
[1755544918097,0.0391999,183.54,183.49,2.87]
[1755544918294,0.0391999,183.54,183.5,2.87]
[1755544919000,0.0391999,183.54,183.5,8.3168]
[1755544920199,3.1691999,183.54,183.51,5.4467]
[1755544920398,3.1691999,183.54,183.5,2.87]
[1755544921899,0.0391999,183.54,183.51,2.87]
[1755544922091,0.0391999,183.54,183.46,2.87]
[1755544922295,3.13,183.61,183.5,2.87]
[1755544922501,3.13,183.61,183.57,8.3147]
[1755544923002,3.13,183.61,183.57,5.4447]
[1755544923200,138.68,183.64,183.54,2.87]
[1755544923601,138.68,183.64,183.58,5.4444]
[1755544923797,138.68,183.64,183.57,2.87]
[1755544924408,138.68,183.64,183.58,5.4445]
[1755544924599,121.31965975,183.65,183.57,2.87]
[1755544924795,138.6,183.67,183.57,2.87]
[1755544924995,138.6,183.67,183.59,5.4442]
[1755544925204,3.16,183.66,183.57,2.87]
[1755544925609,3.16,183.65,183.61,0.03649244]
[1755544925906,3.16,183.66,183.61,0.03649244]
[1755544926098,4.36999916,183.65,183.61,0.03649244]
[1755544926300,138.6,183.67,183.61,0.03649244]
[1755544926501,3.16,183.62,183.61,0.03649244]
[1755544928908,3.16,183.65,183.61,0.03649244]
[1755544930010,138.6,183.67,183.61,2.90649244]
[1755544930700,138.6,183.67,183.61,8.35009244]
[1755544931712,138.6,183.67,183.61,2.90649244]
[1755544933110,138.6,183.67,183.62,5.4432]
[1755544933412,138.6,183.67,183.64,2.87]
[1755544933907,50.0,183.68,183.64,2.87]
[1755544934216,138.12,183.67,183.62,5.4433]
[1755544934404,138.12,183.67,183.62,2.87]
[1755544934607,138.12,183.67,183.61,0.03649244]
[1755544934608,138.12,183.67,183.63,2.87]
[1755544934799,138.12,183.67,183.61,0.03649244]
[1755544935004,138.12,183.67,183.64,2.87]
[1755544935407,138.12,183.67,183.63,5.4429]
[1755544935618,138.12,183.67,183.63,8.3129]
[1755544936014,138.12,183.67,183.65,2.87]
[1755544936308,138.12,183.67,183.61,0.03649244]
[1755544936309,138.12,183.67,183.63,3.80193845]
[1755544936518,141.28,183.67,183.61,0.03649244]
[1755544936711,3.16,183.66,183.61,0.03649244]
[1755544936906,3.16,183.66,183.62,2.87]
[1755544937416,3.16,183.66,183.62,8.3133]
[1755544937710,3.16,183.66,183.62,2.87]
[1755544938214,3.16,183.66,183.62,8.3134]
[1755544939412,3.16,183.66,183.62,2.87]
[1755544941512,138.12,183.67,183.63,2.87]
[1755544942412,3.04,183.66,183.61,5.48009244]
[1755544942716,3.04,183.66,183.61,8.64009244]
[1755544943102,3.04,183.66,183.62,3.16]
[1755544945614,50.0,183.7,183.61,0.03649244]
[1755544945915,3.04,183.65,183.61,0.03649244]
[1755544946217,3.04,183.63,183.61,0.03649244]
[1755544946717,137.72,183.64,183.61,0.03649244]
[1755544946718,3.04,183.62,183.61,0.03649244]
[1755544948416,3.80193845,183.63,183.61,0.03649244]
[1755544948617,6.84193845,183.63,183.61,0.03649244]
[1755544948911,6.84193845,183.63,183.58,8.34328044]
[1755544949129,3.04,183.62,183.58,3.16]
[1755544949333,3.04,183.62,183.57,8.6048]
[1755544949529,3.80193845,183.63,183.57,8.6048]
[1755544949730,3.04,183.61,183.57,8.6048]
[1755544949935,137.74,183.6,183.57,8.6048]
[1755544950131,3.04,183.59,183.53,3.16]
[1755544950931,3.04,183.57,183.5,3.16]
[1755544951732,0.03562772,183.58,183.5,3.16]
[1755544952232,0.03562772,183.58,183.54,3.16]
[1755544952430,0.03562772,183.58,183.49,3.80193845]
[1755544952636,3.07562772,183.58,183.5,3.16]
[1755544952826,3.07562772,183.58,183.53,5.4459]
[1755544953131,3.07562772,183.58,183.54,3.16]
[1755544953321,3.04,183.57,183.5,3.16]
[1755544953527,137.93562772,183.58,183.5,3.16]
[1755544955729,137.93562772,183.58,183.55,5.4453]
[1755544955928,137.93562772,183.58,183.56,3.16]
[1755544956638,0.03562772,183.58,183.57,3.16]
[1755544956835,137.82,183.65,183.57,3.16]
[1755544957137,3.04,183.64,183.57,3.16]
[1755544957331,3.04,183.64,183.54,3.16]
[1755544957532,3.04,183.62,183.54,3.16]
[1755544957731,3.04,183.62,183.55,5.4454]
[1755544958128,3.04,183.62,183.56,0.03526904]
[1755544958731,3.04,183.62,183.56,5.48046904]
[1755544958931,3.04,183.62,183.56,0.03526904]
[1755544959238,3.04,183.62,183.57,8.6049]
[1755544960038,137.82,183.65,183.59,3.16]
[1755544960632,137.82,183.65,183.56,3.80193845]
[1755544960837,3.04,183.63,183.6,0.03877184]
[1755544961239,3.04,183.64,183.6,0.03877184]
[1755544961435,137.82,183.65,183.6,0.03877184]
[1755544961632,3.04,183.64,183.6,0.03877184]
[1755544962237,137.82,183.65,183.6,0.03877184]
[1755544962433,3.04,183.63,183.6,0.03877184]
[1755544962635,3.04,183.62,183.6,0.03877184]
[1755544962835,3.04,183.64,183.6,0.03877184]
[1755544963538,137.82,183.65,183.6,0.03877184]
[1755544963835,3.04,183.63,183.6,0.03877184]
[1755544964031,3.04,183.61,183.6,0.03877184]
[1755544964229,6.87176718,183.61,183.6,0.03877184]
[1755544965836,141.59176718,183.61,183.6,0.03877184]
[1755544966138,137.76,183.61,183.6,0.03877184]
[1755544966644,137.76,183.61,183.6,3.19877184]
[1755544969845,137.76,183.61,183.6,0.03877184]
[1755544971744,137.76,183.61,183.6,3.19877184]
[1755544971951,137.76,183.61,183.6,0.03877184]
[1755544981057,140.83,183.61,183.6,0.03877184]
[1755544981256,144.69796969,183.61,183.6,0.03877184]
[1755544986865,141.62796969,183.61,183.6,0.03877184]
[1755544993872,144.69796969,183.61,183.6,0.03877184]
[1755544994367,141.62796969,183.61,183.6,0.03877184]
[1755544994571,141.62796969,183.61,183.6,3.01877184]
[1755544995475,137.76,183.61,183.6,3.01877184]
[1755545002281,137.76,183.61,183.6,8.46277184]
[1755545002581,187.64,183.64,183.61,3.16]
[1755545002780,187.64,183.64,183.62,3.16]
[1755545002989,187.64,183.64,183.61,5.4436]
[1755545003286,187.64,183.64,183.62,3.16]
[1755545003689,187.64,183.64,183.63,3.16]
[1755545003877,191.52254942,183.64,183.63,3.16]
[1755545004083,187.64,183.64,183.63,3.16]
[1755545004781,137.64,183.64,183.63,3.16]
[1755545005989,137.64,183.64,183.63,8.6032]
[1755545006287,50.0,183.68,183.63,3.16]
[1755545006486,137.62,183.66,183.62,3.16]
[1755545006692,137.62,183.66,183.61,3.80193845]
[1755545006693,137.62,183.67,183.64,5.4426]
[1755545006899,137.62,183.67,183.65,3.16]
[1755545007101,137.62,183.67,183.66,3.16]
[1755545008393,137.6,183.69,183.66,3.16]
[1755545008700,50.0,183.72,183.65,3.16]
[1755545008902,141.45797424,183.71,183.68,3.16]
[1755545009199,137.58,183.71,183.69,3.16]
[1755545009596,137.58,183.71,183.7,3.16]
[1755545009804,137.58,183.71,183.68,3.16]
[1755545009998,137.58,183.71,183.68,8.6016]
[1755545010303,137.58,183.71,183.69,3.16]
[1755545010604,137.58,183.71,183.69,8.6013]
[1755545012302,137.58,183.71,183.69,5.4413]
[1755545012495,137.58,183.71,183.7,3.16]
[1755545012894,137.58,183.71,183.7,8.6011]
[1755545013505,3.02,183.77,183.7,6.96193845]
[1755545013705,137.54,183.76,183.7,6.96193845]
[1755545014201,137.54,183.76,183.71,0.03905216]
[1755545014403,137.54,183.76,183.73,3.80193845]
[1755545014603,137.54,183.76,183.74,3.16]
[1755545015507,3.02,183.75,183.73,3.80193845]
[1755545016206,137.54,183.76,183.74,3.16]
[1755545016406,140.56,183.76,183.73,3.80193845]
[1755545017301,140.56,183.76,183.73,6.96193845]
[1755545018996,140.56,183.76,183.74,3.16]
[1755545018997,137.54,183.76,183.74,3.16]
[1755545019711,140.56,183.76,183.73,6.96193845]
[1755545020304,140.56,183.76,183.73,12.40213845]
[1755545020502,137.54,183.76,183.74,3.16]
[1755545020800,50.0,183.81,183.75,3.16]
[1755545021008,3.02,183.82,183.76,3.80193845]
[1755545021203,137.46,183.81,183.75,3.80193845]
[1755545021402,3.02,183.8,183.75,3.16]
[1755545021599,3.02,183.79,183.77,0.03648226]
[1755545022401,137.46,183.81,183.77,0.03648226]
[1755545022604,3.02,183.79,183.77,0.03648226]
[1755545023408,137.46,183.81,183.77,3.19648226]
[1755545023706,140.48,183.81,183.77,3.19648226]
[1755545024008,3.02,183.8,183.77,3.19648226]
[1755545024910,137.46,183.81,183.78,3.16]
[1755545025506,140.48,183.81,183.78,3.16]
[1755545025707,3.02,183.8,183.77,0.03648226]
[1755545026308,137.46,183.81,183.77,0.03648226]
[1755545026309,3.02,183.79,183.77,0.03648226]
[1755545035023,137.46,183.81,183.77,8.45548226]
[1755545035222,140.33,183.81,183.78,2.98]
[1755545036115,137.46,183.81,183.77,0.03648226]
[1755545036621,2.87,183.8,183.77,0.03648226]
[1755545036819,2.87,183.78,183.77,0.03648226]
[1755545037317,137.46,183.81,183.77,0.03648226]
[1755545037620,140.33,183.81,183.78,2.98]
[1755545037818,140.33,183.81,183.78,8.4187]
[1755545038721,137.46,183.81,183.8,2.98]
[1755545039720,137.46,183.81,183.78,8.4186]
[1755545040310,140.33,183.81,183.78,8.4186]
[1755545040811,140.33,183.81,183.77,0.03648226]
[1755545040812,2.87,183.79,183.77,0.03648226]
[1755545041012,140.15,183.78,183.77,0.03648226]
[1755545041312,137.28,183.78,183.77,0.03648226]
[1755545041617,137.28,183.78,183.77,3.01648226]
[1755545041819,2.87,183.8,183.77,3.01648226]
[1755545042014,2.87,183.8,183.77,8.45528226]
[1755545042615,137.31672628,183.81,183.78,5.4386]
[1755545042808,137.31672628,183.81,183.79,2.98]
[1755545043418,137.31672628,183.81,183.79,8.4184]
[1755545045015,137.31672628,183.81,183.79,2.98]
[1755545047227,137.31672628,183.81,183.8,2.98]
[1755545047422,0.03672628,183.81,183.8,2.98]
[1755545048824,0.03672628,183.81,183.8,8.4181]
[1755545052231,0.03672628,183.81,183.8,5.4381]
[1755545052930,2.87,183.8,183.77,0.03648226]
[1755545053130,2.87,183.79,183.77,0.03648226]
[1755545053427,2.87,183.78,183.77,0.03648226]
[1755545053623,2.87,183.8,183.77,0.03648226]
[1755545053822,0.03672628,183.81,183.77,0.03648226]
[1755545054023,2.87,183.79,183.77,0.03648226]
[1755545054230,2.87,183.78,183.77,0.03648226]
[1755545060623,2.87,183.8,183.77,0.03648226]
[1755545060827,2.87,183.78,183.77,0.03648226]
[1755545061025,6.73443602,183.78,183.77,0.03648226]
[1755545065939,3.86443602,183.78,183.77,0.03648226]
[1755545066131,6.83443602,183.78,183.77,0.03648226]
[1755545067733,6.83443602,183.78,183.68,2.95]
[1755545067734,2.97,183.77,183.68,2.95]
[1755545067939,2.97,183.75,183.71,5.4408]
[1755545068139,6.83443602,183.74,183.68,2.95]
[1755545068337,3.86613188,183.73,183.68,2.95]
[1755545068639,137.1,183.76,183.65,85.65946387]
[1755545068640,6.83613188,183.72,183.65,88.60946387]
[1755545068839,3.86613188,183.71,183.67,5.4417]
[1755545069041,2.97,183.71,183.67,8.3917]
[1755545069244,2.97,183.71,183.67,5.4417]
[1755545069442,2.97,183.7,183.67,5.4417]
[1755545070334,2.97,183.7,183.65,87.30002542]
[1755545070539,2.97,183.71,183.61,6.75193845]
[1755545070745,2.97,183.69,183.61,6.75193845]
[1755545071141,2.97,183.68,183.61,3.80193845]
[1755545071438,0.03693407,183.67,183.61,3.80193845]
[1755545071639,0.03693407,183.67,183.64,8.3928]
[1755545071839,0.03693407,183.67,183.62,2.95]
[1755545072332,0.03693407,183.67,183.65,2.95]
[1755545072832,0.03693407,183.67,183.61,6.75193845]
[1755545073032,3.00693407,183.67,183.61,6.75193845]
[1755545074145,3.00693407,183.67,183.63,5.4431]
[1755545074349,3.00693407,183.67,183.64,2.95]
[1755545077147,2.97,183.66,183.62,2.95]
[1755545077845,2.97,183.66,183.62,8.3932]
[1755545078350,2.97,183.66,183.62,5.4432]
[1755545078545,2.97,183.66,183.62,8.3932]
[1755545079651,2.97,183.66,183.63,2.95]
[1755545080552,3.00693407,183.67,183.61,9.24563845]
[1755545081242,3.00693407,183.67,183.61,3.80193845]
[1755545081445,3.00693407,183.67,183.6,8.394]
[1755545081446,3.00693407,183.67,183.6,2.95]
[1755545082247,3.00693407,183.67,183.58,9.24643845]
[1755545082248,6.80887252,183.67,183.56,6.75193845]
[1755545082454,2.97,183.66,183.56,12.19703845]
[1755545082646,2.97,183.66,183.56,8.3951]
[1755545082847,2.97,183.66,183.56,2.95]
[1755545083242,2.97,183.66,183.57,5.4449]
[1755545083653,2.97,183.66,183.56,2.95]
[1755545086042,2.97,183.66,183.54,5.4457]
[1755545086243,2.97,183.63,183.53,3.80193845]
[1755545086452,2.97,183.61,183.53,3.80193845]
[1755545086652,2.97,183.61,183.53,9.24793845]
[1755545088957,2.97,183.61,183.53,3.80193845]
[1755545089956,2.97,183.61,183.52,2.95]
[1755545090357,2.97,183.61,183.52,8.3964]
[1755545090553,52.97,183.61,183.52,8.3964]
[1755545092550,0.03690531,183.58,183.52,8.3964]
[1755545092753,0.03690531,183.58,183.52,5.4464]
[1755545092954,0.03690531,183.58,183.55,2.94]
[1755545094557,0.03690531,183.58,183.56,2.94]
[1755545095559,0.03690531,183.58,183.51,2.94]
[1755545095858,0.03690531,183.58,183.57,2.94]
[1755545096456,0.03690531,183.58,183.57,8.3849]
[1755545097666,187.02,183.64,183.59,5.4442]
[1755545097861,187.02,183.64,183.61,2.94]
[1755545098253,190.14,183.64,183.61,2.94]
[1755545098863,190.14,183.64,183.61,2.98152493]
[1755545099461,3.12,183.63,183.61,0.04152493]
[1755545100956,3.12,183.62,183.61,0.04152493]
[1755545101867,190.14,183.64,183.61,0.04152493]
[1755545102068,3.12,183.62,183.61,0.04152493]
[1755545103766,187.02,183.64,183.61,0.04152493]
[1755545103964,3.12,183.63,183.61,0.04152493]
[1755545104570,187.02,183.64,183.62,2.94]
[1755545104965,50.0,183.64,183.62,2.94]
[1755545106567,136.92,183.66,183.62,3.80193845]
[1755545106766,136.92,183.66,183.63,2.94]
[1755545107161,140.04,183.66,183.63,2.94]
[1755545107962,136.92,183.66,183.62,3.80193845]
[1755545108162,136.92,183.66,183.63,2.94]
[1755545108362,3.12,183.63,183.61,0.04152493]
[1755545110361,136.92,183.66,183.61,0.04152493]
[1755545110566,3.12,183.62,183.61,0.04152493]
[1755545110763,140.0,183.62,183.61,0.04152493]